bitfinex/quotes_BTCUSD_20241103
["timestamp","ask_amount","ask_price","bid_price","bid_amount"]
[1730607916137,0.76206824,68530.0,68529.0,0.003638]
[1730607916372,0.83800263,68530.0,68529.0,0.002638]
[1730607916589,0.83800263,68530.0,68529.0,0.001638]
[1730607916843,0.75906824,68530.0,68529.0,0.001638]
[1730607917070,0.75906824,68530.0,68529.0,0.002638]
[1730607917294,0.76206824,68530.0,68529.0,0.003638]
[1730607917505,0.76706824,68530.0,68529.0,0.003638]
[1730607917731,0.76206824,68530.0,68529.0,0.003638]
[1730607917946,0.68313385,68530.0,68529.0,0.003638]
[1730607918592,0.68013385,68530.0,68529.0,0.002638]
[1730607918811,0.67814112,68530.0,68529.0,0.003638]
[1730607919028,0.68314112,68530.0,68529.0,0.003638]
[1730607919241,0.68014112,68530.0,68529.0,0.002638]
[1730607919465,0.67514112,68530.0,68529.0,0.002638]
[1730607919679,0.67514112,68530.0,68529.0,0.003638]
[1730607920107,0.67514112,68530.0,68529.0,0.002638]
[1730607920299,0.67014112,68530.0,68529.0,0.002638]
[1730607920539,0.67314112,68530.0,68529.0,0.002638]
[1730607921879,0.75207551,68530.0,68529.0,0.002638]
[1730607922521,0.75208715,68530.0,68529.0,0.002638]
[1730607923856,0.67315276,68530.0,68529.0,0.002638]
[1730607926065,0.659481,68530.0,68529.0,0.002638]
[1730607926291,0.67315521,68530.0,68529.0,0.002638]
[1730607927191,0.659481,68530.0,68529.0,0.002638]
[1730607927381,0.75208741,68530.0,68529.0,0.002638]
[1730607928327,0.67315302,68530.0,68529.0,0.002638]
[1730607929664,0.659481,68530.0,68529.0,0.002638]
[1730607929883,0.67314859,68530.0,68529.0,0.002638]
[1730607933367,0.67314616,68530.0,68529.0,0.002638]
[1730607937074,0.659481,68530.0,68529.0,0.002638]
[1730607937295,0.6731458,68530.0,68529.0,0.002638]
[1730607937513,0.67314602,68530.0,68529.0,0.002638]
[1730607941034,0.80688426,68530.0,68529.0,0.002638]
[1730607942754,0.88581865,68530.0,68529.0,0.002638]
[1730607944320,0.75208041,68530.0,68529.0,0.002638]
[1730607948557,0.75209458,68530.0,68529.0,0.002638]
[1730607948774,0.73841539,68530.0,68529.0,0.002638]
[1730607949005,0.75209473,68530.0,68529.0,0.002638]
[1730607952083,0.73841539,68530.0,68529.0,0.002638]
[1730607952322,0.75209762,68530.0,68529.0,0.002638]
[1730607955881,0.73841539,68530.0,68529.0,0.002638]
[1730607956098,0.75209936,68530.0,68529.0,0.002638]
[1730607959453,0.73841539,68530.0,68529.0,0.002638]
[1730607959667,0.75209972,68530.0,68529.0,0.002638]
[1730607959911,0.79372435,68530.0,68529.0,0.002638]
[1730607960334,0.75209986,68530.0,68529.0,0.002638]
[1730607960542,0.67316547,68530.0,68529.0,0.002638]
[1730607961867,0.67316547,68530.0,68529.0,0.001638]
[1730607962075,0.67316547,68530.0,68529.0,0.005638]
[1730607962305,0.659481,68530.0,68529.0,0.005638]
[1730607962521,0.67016563,68530.0,68529.0,0.005638]
[1730607962741,0.67016563,68530.0,68529.0,0.002638]
[1730607962964,0.67016563,68530.0,68529.0,0.001638]
[1730607964061,0.67016563,68530.0,68529.0,0.004638]
[1730607969750,0.6701664,68530.0,68529.0,0.004638]
[1730607972845,0.67016602,68530.0,68529.0,0.004638]
[1730607976549,0.67016577,68530.0,68529.0,0.004638]
[1730607980106,0.67016595,68530.0,68529.0,0.004638]
[1730607982644,0.656481,68530.0,68529.0,0.004638]
[1730607982878,0.67016646,68530.0,68529.0,0.004638]
[1730607983330,0.52424546,68530.0,68529.0,0.004638]
[1730607984220,0.67016646,68530.0,68529.0,0.004638]
[1730607987363,0.67016682,68530.0,68529.0,0.004638]
[1730607991109,0.656481,68530.0,68529.0,0.004638]
[1730607991347,0.67016736,68530.0,68529.0,0.004638]
[1730607991571,0.67016718,68530.0,68529.0,0.004638]
[1730607994886,0.67016715,68530.0,68529.0,0.004638]
[1730608002411,0.656481,68530.0,68529.0,0.004638]
[1730608002621,0.67016483,68530.0,68529.0,0.004638]
[1730608005183,0.67016483,68530.0,68529.0,0.001638]
[1730608005595,0.67016483,68530.0,68529.0,0.003638]
[1730608007117,0.67116483,68530.0,68529.0,0.003638]
[1730608009668,0.657481,68530.0,68529.0,0.003638]
[1730608009847,0.67116043,68530.0,68529.0,0.003638]
[1730608010993,0.72026043,68530.0,68529.0,0.003638]
[1730608013197,0.706581,68530.0,68529.0,0.003638]
[1730608013411,0.72025868,68530.0,68529.0,0.003638]
[1730608013855,1.02581881,68530.0,68529.0,0.003638]
[1730608014293,1.06959477,68530.0,68529.0,0.003638]
[1730608014506,1.02581881,68530.0,68529.0,0.003638]
[1730608016735,1.0258168,68530.0,68529.0,0.003638]
[1730608017451,1.06959276,68530.0,68529.0,0.003638]
[1730608017683,1.0258168,68530.0,68529.0,0.003638]
[1730608019409,1.06957371,68530.0,68529.0,0.003638]
[1730608019883,1.0308168,68530.0,68529.0,0.003638]
[1730608020798,1.0308168,68530.0,68529.0,0.001638]
[1730608021023,1.0318168,68530.0,68529.0,0.001638]
[1730608021253,1.0318168,68530.0,68529.0,0.003638]
[1730608022323,1.09944254,68530.0,68529.0,0.003638]
[1730608022550,1.09744254,68530.0,68529.0,0.003638]
[1730608022995,1.12136872,68530.0,68529.0,0.003638]
[1730608023679,1.0338168,68530.0,68529.0,0.003638]
[1730608024549,1.09742114,68530.0,68529.0,0.003638]
[1730608025709,1.0318168,68530.0,68529.0,0.003638]
[1730608026171,1.03381152,68530.0,68529.0,0.003638]
[1730608026613,1.03181152,68530.0,68529.0,0.003638]
[1730608027530,1.07553779,68530.0,68529.0,0.003638]
[1730608027749,1.22133483,68530.0,68529.0,0.003638]
[1730608028399,1.22333483,68530.0,68529.0,0.003638]
[1730608029780,1.22333539,68530.0,68529.0,0.003638]
[1730608030227,1.20966444,68530.0,68529.0,0.003638]
[1730608030447,1.22333566,68530.0,68529.0,0.003638]
[1730608031544,1.17960946,68530.0,68529.0,0.003638]
[1730608031751,1.22333282,68530.0,68529.0,0.003638]
[1730608033265,1.20966153,68530.0,68529.0,0.003638]
[1730608033487,1.22333358,68530.0,68529.0,0.003638]
[1730608035036,1.22133358,68530.0,68529.0,0.003638]
[1730608036336,1.22133536,68530.0,68529.0,0.003638]
[1730608036804,1.22133791,68530.0,68529.0,0.003638]
[1730608037242,1.22333791,68530.0,68529.0,0.003638]
[1730608037462,1.17961277,68530.0,68529.0,0.003638]
[1730608040316,1.17961631,68530.0,68529.0,0.003638]
[1730608041708,1.24520403,68530.0,68529.0,0.003638]
[1730608043055,1.24020403,68530.0,68529.0,0.003638]
[1730608043275,1.24320403,68530.0,68529.0,0.003638]
[1730608043728,1.2432096,68530.0,68529.0,0.003638]
[1730608044165,1.22952589,68530.0,68529.0,0.003638]
[1730608044390,1.28865204,68530.0,68529.0,0.003638]
[1730608045765,1.28868886,68530.0,68529.0,0.003638]
[1730608046420,1.22306432,68530.0,68529.0,0.003638]
[1730608047303,0.78823495,68530.0,68529.0,0.003638]
[1730608047519,0.72760715,68530.0,68529.0,0.003638]
[1730608047749,0.79323801,68530.0,68529.0,0.003638]
[1730608047981,0.8721724,68530.0,68529.0,0.003638]
[1730608048899,0.80654154,68530.0,68529.0,0.003638]
[1730608049364,0.85614154,68530.0,68529.0,0.003638]
[1730608050457,0.94364093,68530.0,68529.0,0.003638]
[1730608051119,0.85614154,68530.0,68529.0,0.003638]
[1730608052448,0.94364093,68530.0,68529.0,0.003638]
[1730608052676,1.08946667,68530.0,68529.0,0.003638]
[1730608054212,1.08947532,68530.0,68529.0,0.003638]
[1730608056394,1.00197593,68530.0,68529.0,0.003638]
[1730608058427,1.11135017,68530.0,68529.0,0.003638]
[1730608058651,0.96552443,68530.0,68529.0,0.003638]
[1730608058873,0.85615019,68530.0,68529.0,0.003638]
[1730608059507,0.96052443,68530.0,68529.0,0.003638]
[1730608059742,0.96552443,68530.0,68529.0,0.003638]
[1730608061461,0.96552502,68530.0,68529.0,0.003638]
[1730608061743,1.11135076,68530.0,68529.0,0.003638]
[1730608061958,1.11335076,68530.0,68529.0,0.003638]
[1730608062410,1.11135076,68530.0,68529.0,0.003638]
[1730608063493,1.00197652,68530.0,68529.0,0.003638]
[1730608065231,1.00197621,68530.0,68529.0,0.003638]
[1730608066291,1.00197616,68530.0,68529.0,0.003638]
[1730608068280,1.0019761,68530.0,68529.0,0.003638]
[1730608073543,0.96069078,68530.0,68529.0,0.003638]
[1730608078686,0.84615036,68530.0,68529.0,0.003638]
[1730608078899,0.80070792,68530.0,68529.0,0.003638]
[1730608079114,0.78701539,68530.0,68529.0,0.003638]
[1730608079325,0.79570813,68530.0,68529.0,0.003638]
[1730608081374,0.74610813,68530.0,68529.0,0.003638]
[1730608081589,0.7461085,68530.0,68529.0,0.003638]
[1730608082011,0.83373925,68530.0,68529.0,0.003638]
[1730608082230,0.66717411,68530.0,68529.0,0.003638]
[1730608082458,0.7461085,68530.0,68529.0,0.003638]
[1730608085126,0.83373841,68530.0,68529.0,0.003638]
[1730608085352,0.7461085,68530.0,68529.0,0.003638]
[1730608085565,0.83373745,68530.0,68529.0,0.003638]
[1730608086650,0.83373669,68530.0,68529.0,0.003638]
[1730608086864,0.7498023,68530.0,68529.0,0.003638]
[1730608087080,0.66717335,68530.0,68529.0,0.003638]
[1730608087367,0.74610774,68530.0,68529.0,0.003638]
[1730608089296,0.83373669,68530.0,68529.0,0.003638]
[1730608089949,0.83455569,68530.0,68529.0,0.003638]
[1730608091057,0.82086334,68530.0,68529.0,0.003638]
[1730608092082,0.83455262,68530.0,68529.0,0.003638]
[1730608094993,0.82955262,68530.0,68529.0,0.003638]
[1730608095198,0.74692367,68530.0,68529.0,0.003638]
[1730608095636,0.82086334,68530.0,68529.0,0.003638]
[1730608098889,0.81586334,68530.0,68529.0,0.003638]
[1730608099748,0.6493,68530.0,68529.0,0.003638]
[1730608099996,0.71000048,68530.0,68529.0,0.051538]
[1730608100274,0.6443,68530.0,68529.0,0.051538]
[1730608101789,0.657979,68530.0,68529.0,0.051538]
[1730608103070,0.65797623,68530.0,68529.0,0.051538]
[1730608103299,0.73691062,68530.0,68529.0,0.051538]
[1730608105792,0.73690542,68530.0,68529.0,0.051538]
[1730608112214,0.73690542,68530.0,68529.0,0.003638]
[1730608113590,0.65797103,68530.0,68529.0,0.003638]
[1730608113812,0.65797103,68530.0,68529.0,0.132838]
[1730608116908,0.6579701,68530.0,68529.0,0.132838]
[1730608120190,0.6443,68530.0,68529.0,0.132838]
[1730608120435,0.65797312,68530.0,68529.0,0.132838]
[1730608120863,0.65297312,68530.0,68529.0,0.132838]
[1730608123790,0.6393,68530.0,68529.0,0.132838]
[1730608123997,0.65297328,68530.0,68529.0,0.132838]
[1730608124444,0.65297336,68530.0,68529.0,0.132838]
[1730608125629,0.65297336,68530.0,68529.0,0.27863504]
[1730608127319,0.6393,68530.0,68529.0,0.27863504]
[1730608127731,0.65297705,68530.0,68529.0,0.27863504]
[1730608131120,0.6393,68530.0,68529.0,0.27863504]
[1730608131328,0.65298443,68530.0,68529.0,0.27863504]
[1730608134955,0.6393,68530.0,68529.0,0.27863504]
[1730608135171,0.65298515,68530.0,68529.0,0.27863504]
[1730608136446,0.65298515,68530.0,68529.0,0.19733504]
[1730608138833,0.65298515,68530.0,68529.0,0.39733504]
[1730608139758,0.50706415,68530.0,68529.0,0.39733504]
[1730608139987,0.65298515,68530.0,68529.0,0.39733504]
[1730608140216,0.50706415,68530.0,68529.0,0.39733504]
[1730608142660,0.50706415,68530.0,68529.0,0.62585804]
[1730608142896,0.50706415,68530.0,68529.0,0.66234268]
[1730608143350,0.50706415,68530.0,68529.0,0.67396719]
[1730608143597,0.50506415,68530.0,68529.0,0.66034268]
[1730608144035,0.50505922,68530.0,68529.0,0.66307804]
[1730608144244,0.50505922,68530.0,68529.0,0.66734255]
[1730608144471,0.50505911,68530.0,68529.0,0.65607804]
[1730608144678,0.50505911,68530.0,68529.0,0.66334247]
[1730608144885,0.50505911,68530.0,68529.0,0.81392893]
[1730608145094,0.50505911,68530.0,68529.0,0.77034247]
[1730608145303,0.50505911,68530.0,68529.0,0.81391974]
[1730608145725,0.50505193,68530.0,68529.0,0.81891974]
[1730608145934,0.50505193,68530.0,68529.0,0.78969974]
[1730608146560,0.491379,68530.0,68529.0,0.78969974]
[1730608146982,0.491379,68530.0,68529.0,0.74612247]
[1730608147405,0.491379,68530.0,68529.0,0.81150216]
[1730608148244,0.491379,68530.0,68529.0,0.74612247]
[1730608149068,0.491379,68530.0,68529.0,0.99401585]
[1730608149270,0.491379,68530.0,68529.0,0.9119002]
[1730608149472,0.491379,68530.0,68529.0,0.99901585]
[1730608149682,0.491379,68530.0,68529.0,0.9119002]
[1730608150100,0.491379,68530.0,68529.0,1.02079476]
[1730608150308,0.491379,68530.0,68529.0,0.99895311]
[1730608150520,0.491379,68530.0,68529.0,1.01057697]
[1730608150737,0.491379,68530.0,68529.0,1.00445845]
[1730608150962,0.491379,68530.0,68529.0,1.02205459]
[1730608151185,0.491379,68530.0,68529.0,1.03367845]
[1730608151423,0.000819,68533.0,68529.0,1.03367845]
[1730608151424,0.000819,68533.0,68532.0,0.285137]
[1730608151632,0.21902447,68552.0,68551.0,0.194976]
[1730608151842,0.21902447,68552.0,68551.0,0.34077304]
[1730608152054,0.000819,68553.0,68552.0,0.145874]
[1730608152282,0.000819,68553.0,68552.0,0.29458815]
[1730608152491,0.000819,68553.0,68552.0,0.29167104]
[1730608152726,0.000819,68553.0,68552.0,0.14579704]
[1730608152936,0.000819,68553.0,68552.0,0.29458818]
[1730608153147,0.000819,68553.0,68552.0,0.29167104]
[1730608153827,0.000819,68553.0,68552.0,0.29467104]
[1730608154039,0.000819,68553.0,68552.0,0.30067104]
[1730608155099,0.000819,68553.0,68552.0,0.15479704]
[1730608155732,0.000819,68553.0,68552.0,0.18401704]
[1730608156815,0.000819,68553.0,68552.0,0.32989104]
[1730608157911,0.000819,68553.0,68552.0,0.18401704]
[1730608158128,0.1436871,68553.0,68552.0,0.009]
[1730608158344,0.30317263,68553.0,68552.0,0.009]
[1730608158558,0.2895591,68553.0,68552.0,0.009]
[1730608158789,0.30317378,68553.0,68552.0,0.009]
[1730608159012,0.31678875,68553.0,68552.0,0.003]
[1730608159436,0.30212065,68553.0,68552.0,0.009]
[1730608159651,0.30212065,68553.0,68552.0,0.006]
[1730608159865,0.30212065,68553.0,68552.0,0.003]
[1730608160138,0.30212065,68553.0,68552.0,0.004]
[1730608160598,0.30212065,68553.0,68552.0,0.005]
[1730608163826,0.29879194,68553.0,68552.0,0.005]
[1730608164698,0.29879194,68553.0,68552.0,0.004]
[1730608165132,0.29879194,68553.0,68552.0,0.005]
[1730608165359,0.145889,68545.0,68542.0,0.21902447]
[1730608165618,0.291757,68550.0,68543.0,0.14871469]
[1730608165848,0.145882,68549.0,68543.0,0.17501704]
[1730608166079,0.145879,68550.0,68543.0,0.32090904]
[1730608166297,0.145879,68550.0,68543.0,0.32091004]
[1730608167162,0.145881,68549.0,68543.0,0.17501704]
[1730608167376,0.20563439,68558.0,68543.0,0.17501704]
[1730608167604,0.145883,68548.0,68543.0,0.17501704]
[1730608167826,0.145883,68548.0,68543.0,0.17801704]
[1730608168266,0.43764,68550.0,68543.0,0.17501704]
[1730608168474,0.01363256,68549.0,68543.0,0.18401704]
[1730608168687,0.01363256,68549.0,68543.0,0.32990804]
[1730608168925,0.291745,68553.0,68543.0,0.32090804]
[1730608169150,0.005,68562.0,68543.0,0.32090804]
[1730608169151,0.01363239,68552.0,68549.0,0.02922]
[1730608169395,0.145857,68560.0,68554.0,0.07893439]
[1730608169642,0.01363484,68559.0,68555.0,0.14579704]
[1730608169882,0.01363484,68558.0,68557.0,0.145864]
[1730608170107,0.000819,68564.0,68558.0,0.145861]
[1730608170335,0.0136341,68563.0,68559.0,0.29165604]
[1730608170560,0.0136341,68562.0,68559.0,0.14579704]
[1730608170769,0.0136341,68561.0,68559.0,0.14579704]
[1730608170985,0.0136341,68560.0,68559.0,0.14579704]
[1730608172545,0.0136341,68560.0,68559.0,0.14879704]
[1730608173412,0.0136341,68560.0,68559.0,0.15279704]
[1730608173832,0.000819,68564.0,68560.0,0.1292]
[1730608174073,0.01363849,68563.0,68561.0,0.14579704]
[1730608174294,0.000819,68564.0,68561.0,0.14579704]
[1730608174295,0.01363849,68562.0,68561.0,0.14579704]
[1730608175622,0.000819,68564.0,68561.0,0.14679704]
[1730608175623,0.01363849,68563.0,68561.0,0.14679704]
[1730608175832,0.000819,68564.0,68561.0,0.29265204]
[1730608176061,0.01363867,68563.0,68561.0,0.29265204]
[1730608176275,0.000819,68564.0,68561.0,0.14679704]
[1730608176492,0.000819,68564.0,68562.0,0.51941009]
[1730608176747,0.000819,68564.0,68563.0,0.29456465]
[1730608176980,0.000819,68564.0,68563.0,0.29164804]
[1730608177194,0.000819,68564.0,68563.0,0.32086804]
[1730608177413,0.01445771,68564.0,68563.0,0.32086804]
[1730608178051,0.01445771,68564.0,68563.0,0.32386804]
[1730608178267,0.000819,68564.0,68563.0,0.32386804]
[1730608178472,0.01445771,68564.0,68563.0,0.32086804]
[1730608178697,0.01445847,68564.0,68563.0,0.45306804]
[1730608178919,0.000819,68564.0,68563.0,0.45006804]
[1730608179373,0.000819,68564.0,68563.0,0.45606804]
[1730608179807,0.000819,68564.0,68563.0,0.45006804]
[1730608180017,0.000819,68564.0,68563.0,0.56106804]
[1730608180871,0.000819,68564.0,68563.0,0.56406804]
[1730608181081,0.000819,68564.0,68563.0,0.56106804]
[1730608181534,0.000819,68564.0,68563.0,0.56406804]
[1730608181747,0.000819,68564.0,68563.0,0.56106804]
[1730608181996,0.000819,68564.0,68563.0,0.56406804]
[1730608182221,0.000819,68564.0,68563.0,0.55806804]
[1730608182440,0.000819,68564.0,68563.0,0.56106804]
[1730608182662,0.000819,68564.0,68563.0,0.56406804]
[1730608182883,0.000819,68564.0,68563.0,0.55806804]
[1730608183373,0.000819,68564.0,68563.0,0.56406804]
[1730608183824,0.000819,68564.0,68563.0,0.55806804]
[1730608184041,0.000819,68564.0,68563.0,0.56106804]
[1730608184265,0.000819,68564.0,68563.0,0.56406804]
[1730608184745,0.000819,68564.0,68563.0,0.56106804]
[1730608184981,0.000819,68564.0,68563.0,0.56406804]
[1730608185445,0.000819,68564.0,68563.0,0.55506804]
[1730608185652,0.000819,68564.0,68563.0,0.55806804]
[1730608185868,0.000819,68564.0,68563.0,0.56406804]
[1730608186289,0.000819,68564.0,68563.0,0.55806804]
[1730608186774,0.000819,68564.0,68563.0,0.56406804]
[1730608187921,0.000819,68564.0,68563.0,0.53484804]
[1730608188135,0.000819,68564.0,68563.0,0.56406804]
[1730608188598,0.000819,68564.0,68563.0,0.55506804]
[1730608188818,0.000819,68564.0,68563.0,0.56406804]
[1730608189029,0.000819,68564.0,68563.0,0.56106804]
[1730608189458,0.000819,68564.0,68563.0,0.55506804]
[1730608189672,0.000819,68564.0,68563.0,0.56106804]
[1730608189924,0.000819,68564.0,68563.0,0.56406804]
[1730608193195,0.000819,68564.0,68563.0,0.55806804]
[1730608193414,0.000819,68564.0,68563.0,0.56406804]
[1730608194348,0.000819,68564.0,68563.0,0.56106804]
[1730608195032,0.000819,68564.0,68563.0,0.56406804]
[1730608198267,0.000819,68564.0,68563.0,0.57130792]
[1730608198949,0.000819,68564.0,68563.0,0.44211094]
[1730608199180,0.01447358,68564.0,68563.0,0.44211094]
[1730608199393,0.000819,68564.0,68563.0,0.44211094]
[1730608199606,0.01447764,68564.0,68563.0,0.44211094]
[1730608199820,0.01447764,68564.0,68563.0,0.43311094]
[1730608200029,0.01447764,68564.0,68563.0,0.44211094]
[1730608200935,0.000819,68564.0,68563.0,0.43486804]
[1730608201153,0.01447944,68564.0,68563.0,0.4421142]
[1730608201366,0.01447944,68564.0,68563.0,0.4331142]
[1730608201585,0.01447944,68564.0,68563.0,0.4421142]
[1730608202020,0.01447944,68564.0,68563.0,0.4331142]
[1730608202231,0.01447944,68564.0,68563.0,0.4361142]
[1730608202444,0.01447944,68564.0,68563.0,0.4421142]
[1730608202661,0.01447944,68564.0,68563.0,0.4391142]
[1730608202932,0.01447944,68564.0,68563.0,0.4421142]
[1730608203168,0.01447944,68564.0,68563.0,0.4331142]
[1730608204038,0.01447944,68564.0,68563.0,0.43682782]
[1730608204970,0.01447944,68564.0,68563.0,0.44582782]
[1730608205431,0.01447944,68564.0,68563.0,0.43682782]
[1730608205648,0.01447944,68564.0,68563.0,0.44582782]
[1730608205872,0.01447944,68564.0,68563.0,0.44282782]
[1730608206088,0.01447944,68564.0,68563.0,0.43682782]
[1730608206326,0.01447944,68564.0,68563.0,0.43982782]
[1730608206566,0.01447944,68564.0,68563.0,0.43682782]
[1730608206794,0.01447944,68564.0,68563.0,0.44282782]
[1730608207008,0.01447944,68564.0,68563.0,0.44582782]
[1730608207454,0.01447944,68564.0,68563.0,0.49272782]
[1730608207896,0.01447944,68564.0,68563.0,0.48672782]
[1730608208994,0.01447944,68564.0,68563.0,0.48972782]
[1730608209251,0.01447944,68564.0,68563.0,0.65286221]
[1730608209483,0.01447944,68564.0,68563.0,0.63661118]
[1730608209708,0.01447944,68564.0,68563.0,0.64986716]
[1730608209929,0.01447944,68564.0,68563.0,0.65286716]
[1730608210849,0.01447944,68564.0,68563.0,0.57166716]
[1730608211090,0.01447944,68564.0,68563.0,0.44583277]
[1730608211952,0.01447944,68564.0,68563.0,0.43983277]
[1730608212171,0.01447944,68564.0,68563.0,0.43683277]
[1730608212399,0.01447944,68564.0,68563.0,0.52176716]
[1730608212609,0.01447944,68564.0,68563.0,0.60296716]
[1730608212820,0.01447944,68564.0,68563.0,0.65286716]
[1730608213038,0.01447944,68564.0,68563.0,0.66447749]
[1730608213244,0.01447944,68564.0,68563.0,0.7079315]
[1730608213458,0.01447944,68564.0,68563.0,0.6989315]
[1730608213890,0.01447944,68564.0,68563.0,0.7019315]
[1730608214322,0.01447944,68564.0,68563.0,0.72365851]
[1730608214802,0.01449543,68564.0,68563.0,0.81912524]
[1730608215035,0.000819,68564.0,68563.0,0.82512524]
[1730608215261,0.000819,68564.0,68563.0,0.90903326]
[1730608215474,0.000819,68564.0,68563.0,0.82212524]
[1730608215754,0.000819,68564.0,68563.0,0.81912524]
[1730608215973,0.000819,68564.0,68563.0,0.87879307]
[1730608216182,0.01449376,68564.0,68563.0,0.87879307]
[1730608216428,0.000819,68564.0,68563.0,0.81350827]
[1730608216652,0.014493,68564.0,68563.0,0.71816129]
[1730608216889,0.000819,68564.0,68563.0,0.87155731]
[1730608217130,0.01449313,68564.0,68563.0,0.8788016]
[1730608217353,0.000819,68564.0,68563.0,0.87880035]
[1730608217580,0.000819,68564.0,68563.0,0.90043205]
[1730608217805,0.000819,68564.0,68563.0,0.81352403]
[1730608218038,0.01449258,68564.0,68563.0,0.81352403]
[1730608218296,0.01449243,68564.0,68563.0,0.81352403]
[1730608218511,0.000819,68564.0,68563.0,0.90043205]
[1730608218760,0.000819,68564.0,68563.0,0.90043115]
[1730608219218,0.01449205,68564.0,68563.0,0.81352313]
[1730608219460,0.01449205,68564.0,68563.0,0.90043115]
[1730608220849,0.01449205,68564.0,68563.0,0.81923115]
[1730608222197,0.01449205,68564.0,68563.0,0.77233115]
[1730608222429,0.01449205,68564.0,68563.0,0.68542313]
[1730608225262,0.000819,68564.0,68563.0,0.68542385]
[1730608225488,0.01449142,68564.0,68563.0,0.5247677]
[1730608225703,0.01449142,68564.0,68563.0,0.79448614]
[1730608226177,0.000819,68564.0,68563.0,0.79447771]
[1730608227060,0.000819,68564.0,68563.0,0.68557775]
[1730608227299,0.000819,68564.0,68563.0,0.69057775]
[1730608227930,0.000819,68564.0,68563.0,0.70218894]
[1730608228578,0.000819,68564.0,68563.0,0.73037775]
[1730608228783,0.000819,68564.0,68563.0,0.82448894]
[1730608229002,0.000819,68564.0,68563.0,0.83048894]
[1730608229448,0.000819,68564.0,68563.0,0.83348894]
[1730608229677,0.000819,68564.0,68563.0,0.83048894]
[1730608230117,0.000819,68564.0,68563.0,0.83348894]
[1730608230754,0.000819,68564.0,68563.0,0.82187775]
[1730608231003,0.000819,68564.0,68563.0,0.82748894]
[1730608231231,0.000819,68564.0,68563.0,0.83348894]
[1730608231460,0.000819,68564.0,68563.0,0.82187775]
[1730608232123,0.000819,68564.0,68563.0,0.98845214]
[1730608232358,0.000819,68564.0,68563.0,0.90426123]
[1730608232580,0.000819,68564.0,68563.0,0.9231405]
[1730608233022,0.000818,68568.0,68567.0,0.28357639]
[1730608233231,0.000818,68568.0,68567.0,0.69018348]
[1730608233450,0.000818,68568.0,68567.0,0.70906275]
[1730608233677,0.000818,68568.0,68567.0,0.69744444]
[1730608234329,0.000818,68568.0,68567.0,0.70344444]
[1730608235000,0.000818,68568.0,68567.0,0.70338017]
[1730608235624,0.000818,68568.0,68567.0,0.70638017]
[1730608236077,0.000818,68568.0,68567.0,1.00340464]
[1730608236306,0.000818,68568.0,68567.0,0.99179287]
[1730608236982,0.000818,68568.0,68567.0,0.98779287]
[1730608237423,0.000818,68568.0,68567.0,1.14749287]
[1730608237846,0.000818,68568.0,68567.0,1.14149287]
[1730608238061,0.000818,68568.0,68567.0,1.13849287]
[1730608238292,0.000818,68568.0,68567.0,1.14749287]
[1730608238755,0.000827,68582.0,68580.0,0.31795439]
[1730608238974,0.000827,68582.0,68580.0,0.77231221]
[1730608239188,0.000827,68582.0,68580.0,0.77957317]
[1730608239416,0.000827,68582.0,68580.0,0.77202759]
[1730608239638,0.000827,68582.0,68580.0,0.7792709]
[1730608240088,0.000827,68582.0,68580.0,0.7812709]
[1730608241323,0.000827,68582.0,68580.0,0.8689109]
[1730608241417,0.000827,68582.0,68580.0,0.94784529]
[1730608241881,0.000827,68582.0,68580.0,0.95184529]
[1730608242350,0.000827,68582.0,68580.0,0.88750096]
[1730608242569,0.000827,68582.0,68580.0,0.8729109]
[1730608242993,0.000827,68582.0,68580.0,0.8759109]
[1730608243232,0.000827,68582.0,68581.0,0.374672]
[1730608243446,0.000827,68582.0,68581.0,0.52769744]
[1730608243654,0.000827,68582.0,68581.0,0.68781355]
[1730608244307,1e-06,68586.0,68585.0,0.80923278]
[1730608244546,1e-06,68586.0,68585.0,0.96225822]
[1730608245614,1e-06,68586.0,68585.0,0.88769818]
[1730608245839,1e-06,68586.0,68585.0,0.96963257]
[1730608246041,1e-06,68586.0,68585.0,0.97163257]
[1730608246485,1e-06,68586.0,68585.0,0.96963257]
[1730608246699,1e-06,68586.0,68585.0,0.81255822]
[1730608246905,1e-06,68586.0,68585.0,0.81555822]
[1730608247136,1e-06,68586.0,68585.0,0.73062383]
[1730608247364,1e-06,68586.0,68585.0,0.34104944]
[1730608247623,0.000826,68593.0,68592.0,0.272649]
[1730608247843,0.000826,68593.0,68592.0,0.58972487]
[1730608248059,0.01303611,68598.0,68594.0,0.274645]
[1730608248279,0.01303611,68598.0,68594.0,0.62455384]
[1730608248516,0.01303611,68598.0,68594.0,0.62163904]
[1730608248738,0.01303611,68598.0,68594.0,0.68551991]
[1730608249006,0.01303611,68598.0,68594.0,0.66957786]
[1730608249215,0.01303611,68598.0,68594.0,0.59737643]
[1730608249424,0.01303611,68598.0,68594.0,0.59937643]
[1730608249636,0.01303611,68598.0,68594.0,0.63984704]
[1730608249842,0.01303611,68598.0,68594.0,0.64144827]
[1730608250051,0.01303611,68598.0,68594.0,0.68096888]
[1730608250470,0.01303611,68598.0,68594.0,0.68471467]
[1730608251106,0.01303611,68598.0,68594.0,0.68771467]
[1730608251517,0.01303611,68598.0,68594.0,0.69071467]
[1730608251728,0.01303611,68598.0,68594.0,0.68771467]
[1730608251935,0.01303611,68598.0,68594.0,0.64819406]
[1730608252365,0.01303611,68598.0,68594.0,0.64219406]
[1730608252573,0.01303611,68598.0,68594.0,0.64519406]
[1730608252785,0.01303611,68598.0,68594.0,0.64219406]
[1730608252999,0.01303611,68598.0,68594.0,0.64819406]
[1730608253659,0.01303611,68598.0,68594.0,0.64519406]
[1730608254103,0.01303611,68598.0,68594.0,0.65119406]
[1730608254537,0.01303611,68598.0,68594.0,0.64219406]
[1730608254967,0.01303611,68598.0,68594.0,0.64519406]
[1730608256100,0.01303611,68598.0,68594.0,0.44354783]
[1730608256326,0.01303611,68598.0,68594.0,0.33854783]
[1730608257030,0.01303611,68598.0,68594.0,0.33254783]
[1730608257456,0.01303611,68598.0,68594.0,0.43854783]
[1730608257899,0.01303611,68598.0,68594.0,0.45158383]
[1730608258326,0.01303611,68598.0,68594.0,0.44858383]
[1730608258538,0.01303611,68598.0,68594.0,0.45158383]
[1730608258765,0.01303611,68598.0,68594.0,0.18805304]
[1730608258996,0.269009,68595.0,68594.0,0.17501704]
[1730608259234,0.123226,68595.0,68594.0,0.18401704]
[1730608259467,0.123226,68595.0,68594.0,0.18101704]
[1730608259694,0.269009,68595.0,68594.0,0.17801704]
[1730608259941,0.123226,68595.0,68594.0,0.18401704]